Cogmind - Beta 15 @@@ ROGUE MODE // 2025.07.31 @ 00:25:59 Player: Skysub Result: Destroyed by B-48 Gladiator with Mace Performance ------------- Evolutions (3) 1500 Regions Visited (10) 2000 Robots Destroyed (141) 705 Value Destroyed (4102) 4102 Prototype IDs (5) 100 Alien Tech Used (0) 0 Bonus (0) 0 TOTAL SCORE: 8407 Bonus ------- None Cogmind --------- Core Integrity 0/700 Matter 180/300 Energy 99/100 System Corruption 19% Temperature Cool (0) Movement Core (50) Location -7/Lower Caves Parts ------- > --- POWER (1) -------- (None) > --- PROPULSION (4) --- (None) > --- UTILITY (6) ------ (None) > --- WEAPON (2) ------- (None) > --- INVENTORY (5) ---- Improved Titanium Leg Structural Scanner Minigun Precision Assault Rifle Plasma Cutter Peak State ------------ > --- POWER ------------ Light Deuterium Engine > --- PROPULSION ------- Armored Wheel Xenon Bombardment Thruster Xenon Bombardment Thruster Xenon Bombardment Thruster > --- UTILITY ---------- Scrap Suit Improved Heat Sink High-capacity Storage Unit Improved Signal Interpreter System Shield > --- WEAPON ----------- Precision Assault Rifle Precision Assault Rifle > --- INVENTORY -------- Armored Wheel Improved Flight Unit Small Storage Unit Medium Storage Unit High-capacity Matter Pod Structural Scanner Experimental Sensor Array Signal Interpreter Melee Analysis Suite Heavy Armor Plating High-powered Field Laser Precision Assault Rifle Rocket Launcher Rocket Launcher Mini Grenade Launcher Missile Launcher Plasma Cutter Hammer Katana [Rating: 50] Favorites ----------- Power Ion Engine Engine Ion Engine Power Core Light Nuclear Core Propulsion Light Treads Treads Light Treads Leg Improved Titanium Leg Wheel Armored Wheel Flight Unit Xenon Bombardment Thruster Utility High-capacity Storage Unit Device Scrap Suit Storage High-capacity Storage Unit Processor Improved Signal Interpreter Hackware System Shield Protection Medium Armor Plating Weapon Heavy Assault Rifle Energy Gun Medium Laser Ballistic Gun Heavy Assault Rifle Launcher Rocket Launcher Impact Weapon Hammer Slashing Weapon Katana Build | -11 -10 -10 -9 -9 -9 -8 -8 -7 -7 -7 ------- Run | Yrd Mat Min Mat Min Exi Min Mat Fac Low Low Slots Evolved 6 | . . . 2 . . . 2 2 . . Power . | . . . . . . . . . . . Propulsion 2 | . . . 1 . . . 1 . . . Utility 4 | . . . 1 . . . 1 2 . . Weapon . | . . . . . . . . . . . Parts Attached 86 | 7 9 2 18 5 . 3 12 23 2 5 Power 10 | 1 1 1 2 1 . 1 2 1 . . Engine 9 | 1 1 1 2 1 . 1 1 1 . . Core 1 | . . . . . . . 1 . . . Reactor . | . . . . . . . . . . . Propulsion 27 | 2 2 . 6 1 . . 7 8 1 . Treads 13 | 2 . . 2 1 . . 6 2 . . Leg 3 | . . . . . . . . 2 1 . Wheel 7 | . 2 . 4 . . . . 1 . . Hover . | . . . . . . . . . . . Flight 4 | . . . . . . . 1 3 . . Utility 23 | 2 2 . 5 2 . 1 2 7 1 1 Device 5 | 1 . . 2 . . 1 . 1 . . Storage 4 | 1 2 . . . . . . . . 1 Processor 3 | . . . . . . . . 2 1 . Hackware 1 | . . . . . . . . 1 . . Protection 10 | . . . 3 2 . . 2 3 . . Artifact . | . . . . . . . . . . . Weapon 26 | 2 4 1 5 1 . 1 1 7 . 4 Energy Gun 3 | 1 . . . . . . . 2 . . Energy Cannon . | . . . . . . . . . . . Ballistic Gun 13 | 1 2 . 4 . . . . 4 . 2 Ballistic Cannon . | . . . . . . . . . . . Launcher 7 | . 1 1 . 1 . 1 1 . . 2 Special Weapon . | . . . . . . . . . . . Impact Weapon 1 | . . . 1 . . . . . . . Slashing Weapon 2 | . 1 . . . . . . 1 . . Piercing Weapon . | . . . . . . . . . . . Special Melee Weapon . | . . . . . . . . . . . Unidentified Prototypes 5 | . . . 3 . . . 1 1 . . Parts Lost 45 | . 4 1 6 4 . 4 . 14 . 12 Power 6 | . 1 . 2 1 . 1 . . . 1 Propulsion 12 | . 2 1 1 1 . . . 4 . 3 Utility 15 | . . . 2 2 . 2 . 5 . 4 Weapon 12 | . 1 . 1 . . 1 . 5 . 4 Highest Loss Streak 12 | . 4 1 3 4 . 4 . 6 . 12 To Critical Strikes . | . . . . . . . . . . . Average Backups 16 | 3 11 14 18 17 18 17 18 18 20 18 Power . | . . . . . . . . . . . Propulsion 1 | 1 1 . 1 2 2 2 1 1 3 2 Utility 6 | . 2 6 6 7 7 7 9 7 3 2 Weapon 8 | . 5 8 8 7 8 7 6 8 13 12 Tool/Special . | . . . . . . . . . . . Unused Backups 16 | . 1 . 4 . . . 2 2 . 7 Power . | . . . . . . . . . . . Propulsion . | . . . . . . . . . . . Utility 3 | . . . . . . . . 2 . 1 Weapon 12 | . 1 . 4 . . . 2 . . 5 Tool/Special 1 | . . . . . . . . . . 1 Average Slot Usage (%) 91 | . 99 92 94 96 100 90 87 80 92 81 Engine 9 | . 13 14 10 10 11 9 7 7 7 5 Treads 16 | . 21 7 16 21 22 22 24 11 7 6 Leg 1 | . . . . . . . . 2 14 12 Wheel 10 | . 6 14 13 11 11 11 9 8 6 6 Flight 1 | . . . . . . . . 6 . . Device 6 | . 14 14 4 . . 5 9 8 7 4 Storage 10 | . 14 14 11 11 11 11 9 7 7 9 Processor 1 | . . . . . . . . 3 7 6 Protection 9 | . . . 15 19 22 8 8 4 15 11 Energy Gun 1 | . 11 . . . . . . 1 . . Ballistic Gun 15 | . 14 18 20 13 11 21 17 10 11 7 Launcher 2 | . . 6 . 8 11 . . . 3 5 Peak Build Rating 50 | 7 9 13 22 18 16 21 29 50 50 46 Average Rating 21 | 6 7 12 15 15 16 18 26 38 46 38 On Entrance 20 | . 7 8 13 18 16 16 21 29 46 46 Naked Turns 2 | . . . . . . . . . . 2 Heaviest Build 84 | 15 50 54 67 67 62 61 63 82 84 84 Greatest Support 60 | 40 40 16 42 40 40 40 20 40 60 12 Greatest Overweight (x) 9 | . 3 3 6 1 1 1 5 9 6 6 Average Overweight (x) 2 | . 1 3 4 1 1 1 4 3 5 5 Largest Inventory Capacity 20 | 8 20 20 20 20 20 20 20 20 20 20 Average Capacity 19 | 7 17 20 20 20 20 20 20 20 20 19 Most Carried 20 | 5 15 15 20 20 18 18 20 20 20 20 Average Carried 17 | 3 11 14 18 17 18 17 19 18 20 19 Final Capacity 20 | 8 20 20 20 20 20 20 20 20 20 5 Final Carried 20 | 5 12 15 20 18 18 18 20 20 20 5 Class Distribution -------------------- 68% | Mutant 31% | Scavenger-Mutant Dominant Class ---------------- Mutant | -10/Materials Mutant | -10/Mines Mutant | -9/Materials Mutant | -9/Mines Mutant | -9/Exiles Scavenger-Mutant | -8/Mines Scavenger-Mutant | -8/Materials Scavenger-Mutant | -7/Factory Mutant | -7/Lower Caves Mutant | -7/Lower Caves Resources | -11 -10 -10 -9 -9 -9 -8 -8 -7 -7 -7 ----------- Run | Yrd Mat Min Mat Min Exi Min Mat Fac Low Low Matter Collected 3338 | 327 379 144 907 75 . 261 234 708 282 21 Remotely . | . . . . . . . . . . . Salvage Created 4380 | 274 468 100 1355 123 . 373 411 793 94 389 Parts 276 | 22 39 9 79 4 . 28 25 47 7 16 Haulers Intercepted 2 | . 1 . 1 . . . . . . . Recyclers Shooed 5 | . 1 . 3 . . . . . 1 . Parts Field Recycled . | . . . . . . . . . . . Retrieved Matter . | . . . . . . . . . . . Parts Self-Destructed 21 | . . . . . . . . . 11 10 Prevented . | . . . . . . . . . . . Kills | -11 -10 -10 -9 -9 -9 -8 -8 -7 -7 -7 ------- Run | Yrd Mat Min Mat Min Exi Min Mat Fac Low Low Combat Hostiles Destroyed 101 | . 11 6 24 4 . 12 12 15 4 13 Melee 2 | . . . . . . . . 2 . . Guns 65 | . 7 3 24 2 . 9 6 11 1 2 AOE 33 | . 4 3 . 2 . 3 6 1 3 11 Classes Destroyed 18 | 3 6 . 2 1 . . 1 1 1 3 Worker 8 | 1 2 . 3 1 . . . 1 . . Builder 2 | . 1 . 1 . . . . . . . Tunneler 14 | 8 2 . . . . 3 . 1 . . Hauler 2 | . 1 . 1 . . . . . . . Recycler 4 | 1 . . 3 . . . . . . . Mechanic 1 | . 1 . . . . . . . . . Operator 1 | . . . . . . . 1 . . . Watcher 8 | . 3 . 3 . . . 1 1 . . Swarmer 30 | . 6 5 4 . . 6 3 1 3 2 Grunt 45 | . 5 1 14 3 . 6 5 5 . 6 Brawler 3 | . . . 2 . . . . . . 1 Duelist 2 | . . . . . . . . . . 2 Protector 1 | . . . . . . . . . . 1 Sentry 13 | . . . 4 . . . 4 5 . . Demolisher 1 | . . . . 1 . . . . . . Hunter 1 | . . . . . . . . . 1 . Programmer 4 | . . . . . . . . 4 . . Behemoth 1 | . . . . . . . . . . 1 Best Kill Streak 9 | 4 8 3 5 4 . 3 6 2 3 9 Combat Bots Only 9 | . 4 3 4 3 . 3 6 2 3 9 Max Kills in Single Turn 4 | 2 4 3 2 3 . 1 1 2 2 2 Gunslinging 1 | . . . 1 . . . . . . . Exploded 3 | . 2 3 . 2 . 1 1 1 2 2 Melee 1 | . . . . . . . . 1 . . Uniques/NPCs Destroyed . | . . . . . . . . . . . Combat | -11 -10 -10 -9 -9 -9 -8 -8 -7 -7 -7 -------- Run | Yrd Mat Min Mat Min Exi Min Mat Fac Low Low Hostile Shots Fired 707 | . 72 11 111 10 . 51 43 298 19 92 Missed 201 | . 19 4 29 . . 11 13 94 4 27 Hits 506 | . 53 7 82 10 . 40 30 204 15 65 Melee 10 | . . . 2 . . . . . . 8 Projectile 496 | . 53 7 80 10 . 40 30 204 15 57 AOE 8 | . . . . 8 . . . . . . Critical Strikes 13 | . . . 2 . . 1 3 5 . 2 Part Disruptions 1 | . . . . . . . . 1 . . Damage Taken 6986 | . 651 63 972 379 . 527 404 2172 230 1588 Core 1071 | . 98 8 139 48 . 20 46 242 32 438 Absorbed by Shields . | . . . . . . . . . . . Regen/Repaired (Parts) 26 | . . . . . . 10 16 . . . Core Remaining (%) 74 | 100 . 57 . . . 48 91 . . . Volleys Fired 354 | 19 50 8 109 3 . 32 28 66 8 31 Largest 2 | 2 2 2 2 2 . 2 2 2 2 2 Hottest 136 | 70 70 40 46 46 . 46 56 136 56 66 Shots Fired 660 | 38 96 13 215 5 . 59 47 126 12 49 Gun 617 | 38 92 12 215 4 . 54 37 124 8 33 Cannon . | . . . . . . . . . . . Launcher 43 | . 4 1 . 1 . 5 10 2 4 16 Special . | . . . . . . . . . . . Kinetic 510 | 19 46 12 215 4 . 54 37 82 8 33 Thermal 107 | 19 46 . . . . . . 42 . . Explosive 43 | . 4 1 . 1 . 5 10 2 4 16 Electromagnetic . | . . . . . . . . . . . Robot Hit Streak 24 | 11 11 8 13 12 . 7 16 24 5 11 Robot Miss Streak 7 | 4 7 2 4 . . 3 2 5 1 2 Penetration Max . | . . . . . . . . . . . Secondary Targets 7 | . . . 5 1 . 1 . . . . Max Gunslinging Chain 1 | . . . 1 1 . 1 . . . . Shots Hit Robots 442 | 23 55 10 147 5 . 35 28 98 5 36 Core Hits 254 | 11 32 6 56 5 . 24 25 49 6 40 Critical Kills 2 | . . . . . . . 1 1 . . Critical Parts Destroyed 1 | . . . 1 . . . . . . . Critical Strikes 5 | . 1 . 1 . . . 1 2 . . Burn 1 | . 1 . . . . . . . . . Destroy 3 | . . . 1 . . . 1 1 . . Sever 1 | . . . . . . . . 1 . . Melee Attacks 18 | . 2 . 1 . . . . 14 . 1 Impact 6 | . . . 1 . . . . 4 . 1 Slashing 12 | . 2 . . . . . . 10 . . Piercing . | . . . . . . . . . . . Sneak Attacks . | . . . . . . . . . . . Combat Hostiles . | . . . . . . . . . . . Follow-up Attacks . | . . . . . . . . . . . Damage Inflicted 10905 | 329 1152 226 2026 237 . 931 1111 2066 298 2529 Guns 6230 | 329 690 116 2026 65 . 472 360 1594 86 492 Cannons . | . . . . . . . . . . . Explosions 4377 | . 425 110 . 172 . 459 751 211 212 2037 Melee 263 | . 22 . . . . . . 241 . . Ramming 35 | . 15 . . . . . . 20 . . Kinetic 5188 | 130 391 116 2026 65 . 472 360 1050 86 492 Thermal 1137 | 199 332 22 . 40 . . . 544 . . Explosive 4282 | . 392 88 . 132 . 459 751 211 212 2037 Electromagnetic . | . . . . . . . . . . . Impact 84 | . . . . . . . . 84 . . Slashing 179 | . 22 . . . . . . 157 . . Piercing . | . . . . . . . . . . . Highest Corruption 19 | . . . . . . . . 9 9 19 Average Corruption 7 | . . . . . . . . 6 9 9 Corruption Purged . | . . . . . . . . . . . Corruption Blocked . | . . . . . . . . . . . Effects 50 | . . . . . . . . 28 15 7 Message Errors 13 | . . . . . . . . 7 4 2 Matter Fused 15 | . . . . . . . . 9 6 . Heat Flow Errors 6 | . . . . . . . . 3 . 3 Energy Discharges 4 | . . . . . . . . 2 2 . Data Loss (minor) 6 | . . . . . . . . 5 . 1 Data Loss (major) 2 | . . . . . . . . 1 1 . Misfires 2 | . . . . . . . . 1 1 . Weapon Failures 2 | . . . . . . . . . 1 1 Overload Shots . | . . . . . . . . . . . Overflow Damage 114 | . 39 . . . . . 8 33 . 34 Projectiles . | . . . . . . . . . . . Explosions 100 | . 39 . . . . . 8 19 . 34 Melee 14 | . . . . . . . . 14 . . Knockbacks . | . . . . . . . . . . . Impact . | . . . . . . . . . . . Kinetic . | . . . . . . . . . . . Secondary . | . . . . . . . . . . . Self-Inflicted Damage 341 | . 69 4 . . . 12 . 180 . 76 Shots 8 | . 2 1 . . . 1 . 2 . 2 Rammed 6 | . 5 . . . . . . 1 . . Targets Rammed 6 | . 5 . . . . . . 1 . . Kicked . | . . . . . . . . . . . Crushed . | . . . . . . . . . . . Highest Temperature 519 | 54 123 . 244 12 . 89 71 519 . 284 Average Temperature 53 | 23 31 . 26 7 . 31 29 113 . 99 Received Heat Transfer 1782 | . 102 . 432 15 . 216 180 588 . 249 Effects 5 | . . . . . . . . 5 . . Shutdowns 2 | . . . . . . . . 2 . . Interference 2 | . . . . . . . . 2 . . Damage (major) 1 | . . . . . . . . 1 . . Siege Activations . | . . . . . . . . . . . Martial Activations . | . . . . . . . . . . . Shielding Activations . | . . . . . . . . . . . Robots Disrupted . | . . . . . . . . . . . Combat Hostiles . | . . . . . . . . . . . Robots Corrupted 1 | . . . . . . . . 1 . . Combat Hostiles 1 | . . . . . . . . 1 . . Parts Fried 1 | . . . . . . . . 1 . . Impact Corruptions 1 | . . . . . . . . 1 . . Robots Melted . | . . . . . . . . . . . Combat Hostiles . | . . . . . . . . . . . Parts Melted 4 | 1 1 . . . . . . 2 . . Heat Transferred 2921 | 592 1012 50 . 50 . . . 1217 . . Parts Sabotaged . | . . . . . . . . . . . Parts Stolen . | . . . . . . . . . . . Parts Stripped . | . . . . . . . . . . . Power Chain Reactions . | . . . . . . . . . . . Alert | -11 -10 -10 -9 -9 -9 -8 -8 -7 -7 -7 ------- Run | Yrd Mat Min Mat Min Exi Min Mat Fac Low Low Maximum Alert Level 1 | . 1 . . . . . 1 1 . . Low Security (%) 95 | 100 86 100 100 100 . 100 95 89 . . Level 1 4 | . 13 . . . . . 4 10 . . Level 2 . | . . . . . . . . . . . Level 3 . | . . . . . . . . . . . Level 4 . | . . . . . . . . . . . Level 5 . | . . . . . . . . . . . High Security . | . . . . . . . . . . . Max Security . | . . . . . . . . . . . Peak Influence 263 | 15 231 107 181 149 . 80 214 263 . . Initial 73 | . . 73 . 27 . . 24 65 . . Average 66 | 2 60 32 67 23 . 17 140 132 . . Influence Increases 3551 | 50 523 187 757 209 . 345 422 693 100 265 Destroy 0b10 Robot/C 2000 | . 220 120 480 80 . 240 240 300 80 240 Destroy 0b10 Robot/NC 205 | 50 50 . 55 5 . 15 10 15 . 5 Destroy Leader 480 | . 68 30 108 20 . 40 62 112 20 20 Successful Hack 63 | . 17 . 5 5 . . 31 5 . . Select Force Hacks 60 | . 30 . 30 . . . . . . . Disable Machine 285 | . 15 15 15 75 . 30 30 105 . . Destroy Structure 203 | . 48 22 4 9 . 20 49 51 . . Partial Spotted 15 | . . . 15 . . . . . . . Lose Combat Pursuer 240 | . 75 . 45 15 . . . 105 . . Influence Decreases 3466 | 50 334 376 687 279 . 283 340 769 168 180 Entered New Map 302 | . . 116 . 43 . . 38 79 26 . Time Decay 2662 | 50 294 260 514 219 . 246 302 555 142 80 Lost Part 389 | . 40 . 60 17 . 37 . 135 . 100 Purge Threat 113 | . . . 113 . . . . . . . Squads Dispatched 17 | . 5 . 2 . . . . 9 . 1 Investigation 5 | . 2 . 2 . . . . 1 . . Extermination 2 | . . . . . . . . 2 . . Reinforcement 5 | . 3 . . . . . . 2 . . Assault 1 | . . . . . . . . . . 1 Garrison 4 | . . . . . . . . 4 . . Intercept . | . . . . . . . . . . . Searches Triggered . | . . . . . . . . . . . Construction Impeded . | . . . . . . . . . . . Haulers Reinforced . | . . . . . . . . . . . Active Scanning Responses . | . . . . . . . . . . . Cargo Convoy Interrupts . | . . . . . . . . . . . Stealth | -11 -10 -10 -9 -9 -9 -8 -8 -7 -7 -7 --------- Run | Yrd Mat Min Mat Min Exi Min Mat Fac Low Low Distress Signals 10 | . 3 . 4 . . . 1 2 . . Communications Jammed . | . . . . . . . . . . . Distress Signals . | . . . . . . . . . . . Times Spotted 147 | . 26 7 33 6 . 12 14 28 4 17 Peak Tracking Total 9 | . 5 3 5 2 . 3 3 5 3 9 Tactical Retreats 10 | . 3 . 2 1 . . . 4 . . Traps | -11 -10 -10 -9 -9 -9 -8 -8 -7 -7 -7 ------- Run | Yrd Mat Min Mat Min Exi Min Mat Fac Low Low Traps Triggered 2 | . 1 . . . . . . 1 . . Indirectly . | . . . . . . . . . . . Trap Hack Attempts . | . . . . . . . . . . . Triggered . | . . . . . . . . . . . Disarmed . | . . . . . . . . . . . Reprogrammed . | . . . . . . . . . . . Reused . | . . . . . . . . . . . Traps Extracted . | . . . . . . . . . . . Installed . | . . . . . . . . . . . Triggered . | . . . . . . . . . . . Machines | -11 -10 -10 -9 -9 -9 -8 -8 -7 -7 -7 ---------- Run | Yrd Mat Min Mat Min Exi Min Mat Fac Low Low Machines Disabled 19 | . 1 1 1 5 . 2 2 7 . . Max in Single Turn 5 | . 1 1 1 5 . 2 1 2 . . Garrison Access 1 | . . . . . . . . 1 . . Machines Repaired . | . . . . . . . . . . . Machines Dismantled . | . . . . . . . . . . . Machines Sabotaged . | . . . . . . . . . . . Overloaded Fab Kills . | . . . . . . . . . . . Hacking | -11 -10 -10 -9 -9 -9 -8 -8 -7 -7 -7 --------- Run | Yrd Mat Min Mat Min Exi Min Mat Fac Low Low Machines Accessed 26 | . 5 . 6 1 . . 7 6 1 . Terminals 19 | . 4 . 4 1 . . 7 3 . . Fabricators 1 | . . . . . . . . 1 . . Repair Stations . | . . . . . . . . . . . Recycling Units 3 | . 1 . 2 . . . . . . . Scanalyzers . | . . . . . . . . . . . Garrison Access 2 | . . . . . . . . 2 . . Total Hacks 65 | . 11 . 19 4 . . 19 11 1 . Successful 32 | . 7 . 9 1 . . 10 4 1 . Failed 33 | . 4 . 10 3 . . 9 7 . . Catastrophic 7 | . 2 . 2 . . . 1 2 . . Database Lockouts . | . . . . . . . . . . . Manual 49 | . 10 . 13 4 1 . 15 6 . . Terminals 54 | . 9 . 14 4 . . 19 8 . . Fabricators 1 | . . . . . . . . 1 . . Repair Stations . | . . . . . . . . . . . Recycling Units 7 | . 2 . 5 . . . . . . . Scanalyzers . | . . . . . . . . . . . Garrison Access 2 | . . . . . . . . 2 . . Terminal Hacks 10 | . 1 . 3 . . . 3 2 1 . Record 1 | . . . 1 . . . . . . . Open Door 1 | . . . . . . . . . 1 . Level Access Points 1 | . . . . . . . 1 . . . Branch Access Points 1 | . . . . . . . 1 . . . Emergency Access Points 1 | . . . . . . . . 1 . . Terminal Index 3 | . 1 . . . . . 1 1 . . Unreport Threat 2 | . . . 2 . . . . . . . Fabricator Hacks . | . . . . . . . . . . . Repair Station Hacks . | . . . . . . . . . . . Recycling Unit Hacks 2 | . 1 . 1 . . . . . . . Report Inventory 2 | . 1 . 1 . . . . . . . Scanalyzer . | . . . . . . . . . . . Garrison Access Hacks 1 | . . . . . . . . 1 . . Seal Access 1 | . . . . . . . . 1 . . Unauthorized Hacks 19 | . 5 . 5 1 . . 7 1 . . Terminals 17 | . 4 . 4 1 . . 7 1 . . Botnet 6 | . 1 . 1 1 . . 2 1 . . Skim 11 | . 3 . 3 . . . 5 . . . Fabricators . | . . . . . . . . . . . Repair Stations . | . . . . . . . . . . . Recycling Units 2 | . 1 . 1 . . . . . . . Tunnel 2 | . 1 . 1 . . . . . . . Scanalyzers . | . . . . . . . . . . . Garrison Access . | . . . . . . . . . . . Data Cores Recovered 1 | . . . . . . . 1 . . . Used 1 | . . . . . . . 1 . . . Hacking Detections 20 | . 4 . 5 1 . . 5 5 . . Full Trace Events 1 | . . . 1 . . . . . . . Feedback Events . | . . . . . . . . . . . Feedback Blocked . | . . . . . . . . . . . Robot Schematics Acquired . | . . . . . . . . . . . Robots Built . | . . . . . . . . . . . Authchips . | . . . . . . . . . . . Time . | . . . . . . . . . . . Total Robot Build Rating . | . . . . . . . . . . . Part Schematics Acquired . | . . . . . . . . . . . Parts Built . | . . . . . . . . . . . Authchips . | . . . . . . . . . . . Time . | . . . . . . . . . . . Total Part Build Rating . | . . . . . . . . . . . Parts Repaired . | . . . . . . . . . . . Time . | . . . . . . . . . . . Parts Recycled . | . . . . . . . . . . . Recycled Matter . | . . . . . . . . . . . Retrieved Matter . | . . . . . . . . . . . Retrieved Components . | . . . . . . . . . . . Parts Scanalyzed . | . . . . . . . . . . . Part Schematics Acquired . | . . . . . . . . . . . Parts Damaged . | . . . . . . . . . . . Bothacking | -11 -10 -10 -9 -9 -9 -8 -8 -7 -7 -7 ------------ Run | Yrd Mat Min Mat Min Exi Min Mat Fac Low Low Used RIF Installer . | . . . . . . . . . . . Robots Hacked . | . . . . . . . . . . . Non-combat . | . . . . . . . . . . . Combat . | . . . . . . . . . . . Robot Hacks Applied . | . . . . . . . . . . . Relay Couplers Released 3 | . . . . . . . . 3 . . Programmers 3 | . . . . . . . . 3 . . Fabnet Peak Effective % . | . . . . . . . . . . . Robots Rewired . | . . . . . . . . . . . Allies Hacked . | . . . . . . . . . . . Hacks Repelled . | . . . . . . . . . . . Allies | -11 -10 -10 -9 -9 -9 -8 -8 -7 -7 -7 -------- Run | Yrd Mat Min Mat Min Exi Min Mat Fac Low Low Total Allies 1 | . . . . . . . . . . 1 Largest Group 1 | . . . . . . . . . . 1 Highest-Rated Group 127 | . . . . . . . . . . 127 Highest-Rated Ally 127 | . . . . . . . . . . 127 Total Orders . | . . . . . . . . . . . Ally Attacks . | . . . . . . . . . . . Total Damage . | . . . . . . . . . . . Kills . | . . . . . . . . . . . Allies Corrupted . | . . . . . . . . . . . Allies Melted . | . . . . . . . . . . . Intel | -11 -10 -10 -9 -9 -9 -8 -8 -7 -7 -7 ------- Run | Yrd Mat Min Mat Min Exi Min Mat Fac Low Low Active Infowar (turns) 2412 | 181 930 777 524 . . . . . . . Sensors 1 | . . . 1 . . . . . . . Seismic 2411 | 181 930 777 523 . . . . . . . Robot Analysis Total . | . . . . . . . . . . . Derelict Logs Recovered 4 | . . 2 . 2 . . . . . . Drone Launches . | . . . . . . . . . . . Drone Recoveries . | . . . . . . . . . . . Exploration | -11 -10 -10 -9 -9 -9 -8 -8 -7 -7 -7 ------------- Run | Yrd Mat Min Mat Min Exi Min Mat Fac Low Low Turns Passed 9734 | 254 930 777 1501 1197 548 1369 671 1701 555 231 Spaces Moved 4354 | 76 377 514 689 491 229 528 355 723 291 81 Core 6 | 2 . . . . . . . . . 4 Treads 1696 | 74 180 . 36 491 229 528 1 157 . . Legs 10 | . . . . . . . . 2 8 . Wheels 2624 | . 197 514 653 . . . 354 546 283 77 Hover . | . . . . . . . . . . . Flight 18 | . . . . . . . . 18 . . Fastest Speed 50 | 50 145 145 105 240 240 240 150 108 180 50 Average Speed 186 | 157 152 145 158 240 240 240 157 187 180 173 Slowest Speed 765 | 160 240 145 240 240 240 240 320 765 200 180 Overloaded Moves . | . . . . . . . . . . . Propulsion Burnouts . | . . . . . . . . . . . Robots Hopped . | . . . . . . . . . . . Potential Cave-ins . | . . . . . . . . . . . Cave-ins Triggered . | . . . . . . . . . . . Exploration Rate (%) 53 | 4 62 90 54 97 59 100 28 22 50 17 Regions Visited 10 Branch Regions 6 Pre-discovered Areas 4 | . 1 1 1 1 . . . . . . Known Exits Taken 4 | . . . . 1 . . 1 1 1 . Unknown Exits Taken 6 | 1 1 1 1 . 1 1 . . . . Scrap Searched 4 | . . 1 . 1 . 1 . . 1 . Spaces Dug 4 | . 1 . . . . . . 3 . . Terrain Destroyed 362 | . 67 25 . 9 . 33 59 63 29 77 Melee 4 | . 1 . . . . . . 3 . . Projectile . | . . . . . . . . . . . AOE 358 | . 66 25 . 9 . 33 59 60 29 77 Terrain Rammed . | . . . . . . . . . . . Walls Destroyed . | . . . . . . . . . . . Machines Disabled . | . . . . . . . . . . . Actions | -11 -10 -10 -9 -9 -9 -8 -8 -7 -7 -7 --------- Run | Yrd Mat Min Mat Min Exi Min Mat Fac Low Low Total 5295 | 169 625 531 895 505 228 572 423 918 305 124 Wait 356 | 63 170 4 35 5 . 6 11 62 . . Move 4344 | 75 376 513 688 490 228 527 354 722 290 81 Hop . | . . . . . . . . . . . Pick Up 59 | 5 10 3 20 2 . 1 5 12 . 1 Fast Attach 26 | 7 . . 8 . . 2 1 8 . . Attach 30 | . 4 . 4 4 . 1 2 12 . 3 Detach 5 | . . . 2 . . . 1 2 . . Swap 62 | . 7 3 12 1 . 3 12 12 7 5 Drop 35 | . 1 . 16 . . . 9 7 . 2 Fire 354 | 19 50 8 109 3 . 32 28 66 8 31 Melee 18 | . 2 . 1 . . . . 14 . 1 Ram 4 | . 3 . . . . . . 1 . . Kick . | . . . . . . . . . . . Crush 2 | . 2 . . . . . . . . . Escape Stasis . | . . . . . . . . . . . Rewire . | . . . . . . . . . . . Trap . | . . . . . . . . . . . Miscellaneous . | . . . . . . . . . . . Route ------- -11/Scrapyard -10/Materials (discovered 2 exits: *Mat / [*Min]) -10/Mines (discovered 2 exits: *Mat x2) -9/Materials (discovered 4 exits: *Mat / *Min x2 / [*Sto]) -9/Mines (discovered 3 exits: *Mat x2 / *Exi) -9/Exiles -8/Mines (discovered 2 exits: *Mat x2) -8/Materials (discovered 3 exits: *Fac x3) -7/Factory (discovered 4 exits: Fac x2 / *Low x2) -7/Lower Caves -7/Lower Caves (discovered 1 exit: *Fac) History --------- Turn | Location | Event 8 | -11/Scrapyard | Discovered new exit (range 16) 255 | -11/Scrapyard | Entered Materials 309 | -10/Materials | Build established: Mutant 642 | -10/Materials | Discovered new exit (range 15) 973 | -10/Materials | Discovered new exit (range 3) 1050 | -10/Materials | Lost 4 parts (1p2n1w) 1185 | -10/Materials | Entered Mines 1196 | -10/Mines | Found a damaged Exp. Sensor Array with a note attached 1199 | -10/Mines | Found Prototype Device 1200 | -10/Mines | Met a Derelict bent on vengeance 1491 | -10/Mines | Discovered new exit (range 7) 1516 | -10/Mines | Learned Materials security intel 1582 | -10/Mines | Discovered new exit (range 7) 1648 | -10/Mines | Learned location of Storage (-9) 1962 | -10/Mines | Entered Materials 1962 | -9/Materials | Evolved 2 slots: Propulsion x1, Utility x1 2144 | -9/Materials | Discovered new exit (range 11) 2225 | -9/Materials | Discovered new exit (range 3) 2231 | -9/Materials | Identified Exp. Sensor Array 2334 | -9/Materials | Lost 3 parts (1p1n1u) 2419 | -9/Materials | Build established: Scavenger-Mutant 2995 | -9/Materials | Build established: Mutant 3315 | -9/Materials | Discovered new exit (range 15) 3350 | -9/Materials | Discovered new exit (range 13) 3463 | -9/Materials | Entered Mines 3484 | -9/Mines | Assembled infested the area 3510 | -9/Mines | Discovered new exit (range 7) 3527 | -9/Mines | Lost 4 parts (1p1n2u) 3603 | -9/Mines | Received a Rocket Launcher from a helpful Derelict 3784 | -9/Mines | Learned Materials trap positions 3834 | -9/Mines | Discovered new exit (range 8) 4340 | -9/Mines | Identified exit to Exiles 4660 | -9/Mines | Entered Exiles 4723 | -9/Exiles | Met 8R-AWN 4766 | -9/Exiles | Met EX-HEX 4864 | -9/Exiles | Met EX-DEC 4908 | -9/Exiles | Met EX-BIN 5186 | -9/Exiles | Discovered new exit (range 11) 5208 | -9/Exiles | Entered Mines 5212 | -8/Mines | Core integrity fell below 50% 5766 | -8/Mines | Lost 4 parts (1p2u1w) 5880 | -8/Mines | Found a Scrap Suit stashed away for nefarious purposes 5885 | -8/Mines | Found Scrap Suit 6139 | -8/Mines | Discovered new exit (range 7) 6172 | -8/Mines | Build established: Scavenger-Mutant 6557 | -8/Mines | Discovered new exit (range 4) 6577 | -8/Mines | Entered Materials 6577 | -8/Materials | Evolved 2 slots: Propulsion x1, Utility x1 6578 | -8/Materials | Loaded intel: 27 trap records 6996 | -8/Materials | Identified exit to Factory 7042 | -8/Materials | Learned Factory stockpile data 7143 | -8/Materials | Learned 12 Factory zone layouts 7248 | -8/Materials | Entered Factory 7248 | -7/Factory | Evolved 2 slots: Utility x2 7249 | -7/Factory | Identified exit to Lower Caves 7250 | -7/Factory | Identified exit to Factory 7609 | -7/Factory | Garrison activated, responded to threat 7784 | -7/Factory | Lost 6 parts (3n1u2w) 8258 | -7/Factory | Garrison activated, responded to threat 8448 | -7/Factory | Build established: Mutant 8949 | -7/Factory | Entered Lower Caves 9121 | -7/Lower Caves | Encountered a Warlord checkpoint 9494 | -7/Lower Caves | Discovered new exit (range 5) 9501 | -7/Lower Caves | Identified exit to Lower Caves 9504 | -7/Lower Caves | Entered another Lower Caves area 9595 | -7/Lower Caves | Discovered exit to Factory (range 14) 9645 | -7/Lower Caves | Spotted B-75 Beast 9686 | -7/Lower Caves | Core integrity fell below 50% 9700 | -7/Lower Caves | Attracted the attention of an 0b10 outpost 9700 | -7/Lower Caves | Destroyed B-75 Beast 9720 | -7/Lower Caves | System corruption reached 10% 9726 | -7/Lower Caves | Core integrity fell below 20% 9733 | -7/Lower Caves | Released all parts (2) 9735 | -7/Lower Caves | Destroyed by B-48 Gladiator with Mace Last Messages --------------- 09725_ Penetrated by Slug. 09725_ Rocket Launcher destroyed. 09725_ Destroyed Rocket Launcher. 09725_ B-48 Gladiator destroyed. 09726_ The unstable cave ceiling collapses. 09726_ Imp. Signal Interpreter destroyed. 09726_ System corrupted by crushing effect (+5). 09726_ Knocked back. 09728_ Penetrated by Slug. 09728_ System corrupted: Mni. Grenade Launcher failed to launch. 09730_ Destroyed Lgt. Treads. 09731_ Penetrated by Slug. 09731_ Hammer destroyed. 09732_ Dropped Hcp. Storage Unit. 09733_ Released Imp. Titanium Leg. 09733_ Released Mni. Grenade Launcher. 09733_ Slug penetrates B-48 Gladiator. 09733_ B-48 Gladiator destroyed. 09734_ Dropped Minigun. 09734_ Acquired Prc. Assault Rifle. Map ----- +----------------------------------------------------+ | ?????????????????????????????????????????????????? | | ?????????????????????????????????????????????????? | | ?????????????????????????????????????????????????? | | ?????????????????????????????????????????????????? | | ?????????????????????????????????????????????????? | | ?????????????????????????????????????????????????? | | ?????????????????????????????????????????????????? | | ?????????????????????????????????????????????????? | | ?????????????????????????????????????????????????? | | ?????????????????????????????????????????????????? | | ?????????????????????????????????????????????????? | | ??????????????????? ???????????????????####??????? | | ?????????????????## ?????????????????## ??????? | | ????????????????? ??????????????#### ??????? | | ????????????????? ?????????????## ??????? | | ?????????????????? ?????????????# #??????? | | ???????????????#??? ?????????????? ##???### | | ???????????#???# ??# ?????????????????# ##### | | ?????????? ?# ### ??????????????????# | | ?????????? # #??????????######## | | ?????????? ###?????### | | ????????? % #?????# | | ??????????? ###?#?## | | ????????????? [ # ######## ## | | ??????????????????#; ][[== ## | | ???????????????????#;; !@[= # ######## # | | ???????????????????##;;[[b[ """???# # | | ????????????????????## # /% % # # | | ????????????????????### # # | | ??????????????????### # % Y #++### | | ?????????????????## g # ?# | | ????????????????## # | | ???????????????## # ?# | | ??????????????## ? ## | | ????????????### ## ? #??# | | ??????????### #?? ?##?????? | | ??????????# #??? ##????????? | | ??????????## # #??????????????? | | ???????????## # # ###??????????????? | | ????????????## ###### % % #????????????????? | | ?????????????##?????# % #????????????????? | | ?????????????????????# ??????????????????? | | ??????????????????????## #??????????????????? | | ?????????????????????????### < #?????????????????? | | ???????????????????????????? ????????????????? | | ????????????????????????????## ##???????????????? | | ??????????????????????????????###????????????????? | | ?????????????????????????????????????????????????? | | ?????????????????????????????????????????????????? | | ?????????????????????????????????????????????????? | +----------------------------------------------------+ Best States ------------- Heat Dissipation 48 Energy Generation 18 Energy Capacity 290 Matter Stores 416 Matter Capacity 500 Sight Range 16 Terrain Scan Density 10 Armor Coverage 750 Evasion (%) 40 Melee Accuracy 5 Recoil Reduction 3 Defensive Hacking 10 Item Schematics ----------------- None Robot Schematics ------------------ None Fabricated ------------ Nothing Repaired ---------- Nothing Alien Tech Used ----------------- None Achievements -------------- None Challenges ------------ None Game ------ Seed LobotomyElectronLeg Manual? 0 Play Time 00:48:42 Cumulative 221.9 hours Start 2025.07.30 @ 23:35:54 End 2025.07.31 @ 00:25:59 Sessions 1 Manual Loads 0 Difficulty Rogue Special Mode None Game No. 223 Rogue 223 Adventurer 0 Explorer 0 Win Type - Total 5 Types 1/0/2/1/0/0/0/0/0/1 Lore% 73 Gallery% 69 Achievement% 62 Wizard Run 0 Options --------- Layout 1 ASCII 0 Keyboard 1 Movement Numpad Keybinds 0 Fullscreen 1 Font 32/SmallcapsGlow Map View 77x35 Zoom Use 0% Tactical HUD 1 Map Filters NONE Filters NONE Steam 1 RUN: 74a6dfe1-08f2-4f7f-8132-29fad77adb9e